[Event "Caplin Hastings Masters 2023-24"]
[Site "Hastings"]
[Date "2023.12.31"]
[Round "4.8"]
[White "Unuk, Laura"]
[Black "Wadsworth, Matthew J"]
[Result "1/2-1/2"]
[ECO "D13"]
[WhiteElo "2345"]
[BlackElo "2448"]
[Annotator "RC"]
[PlyCount "165"]
[EventDate "2023.12.18"]
[EventType "swiss"]
[EventCountry "ENG"]
[SourceTitle "playchess.com"]
[Source "ChessBase"]
[SourceQuality "1"]
[TimeControl "40/6000+30:3000+30"]

1. d4 {[%emt 0:00:06]} d5 {[%emt 0:00:37]} 2. c4 {[%emt 0:00:24]} c6 {[%emt 0:00:19]} 3. cxd5 {[%emt 0:00:26]} cxd5 {[%emt 0:00:08]} 4. Bf4 {[%emt 0:00:05]} Nc6 {[%emt 0:00:40]} 5. Nc3 {[%emt 0:03:40]} Nf6 {[%emt 0:02:32]} 6. e3 {[%emt 0:00:07]} a6 {[%emt 0:01:09]} 7. Be2 {[%emt 0:00:41]} Bf5 {[%emt 0:00:20]} 8. Nf3 {[%emt 0:00:35]} e6 {[%emt 0:00:30]} 9. Qb3 {[%emt 0:12:48]} Nh5 {[%emt 0:01:32]} 10. Be5 {[%emt 0:11:08]} Na5 {[%emt 0:00:36]} 11. Qa4+ {[%emt 0:03:34]} Nc6 {[%emt 0:00:41]} 12. Rc1 {[%emt 0:03:13]} f6 {[%emt 0:12:37]} 13. Bg3 {[%emt 0:07:28]} Nxg3 {[%emt 0:06:24]} 14. hxg3 {[%emt 0:00:33]} Bg6 {[%emt 0:01:03]} 15. Nh4 {[%emt 0:17:04]} Bf7 {[%emt 0:00:56]} 16. a3 {[%emt 0:03:46]} g5 {[%emt 0:09:11]} 17. Nf3 {[%emt 0:00:39]} h5 {[%emt 0:00:34]} 18. Nd2 {[%emt 0:08:06]} Bd6 {[%emt 0:07:24]} 19. Nb3 {[%emt 0:14:44]} Kf8 {[%emt 0:08:54]} 20. Nc5 {[%emt 0:00:08]} Bxc5 {[%emt 0:01:28]} 21. dxc5 {[%emt 0:00:09]} Qe7 {[%emt 0:00:49]} 22. b4 {[%emt 0:09:12]} Kg7 {[%emt 0:01:37]} 23. Bd3 {[%emt 0:01:47]} Rad8 {[%emt 0:06:29]} 24. Ne2 {[%emt 0:06:51]} e5 {[%emt 0:05:35]} 25. b5 {[%emt 0:01:39]} axb5 {[%emt 0:02:04]} 26. Bxb5 {[%emt 0:01:20]} d4 {[%emt 0:03:38]} 27. Qc2 {[%emt 0:02:44]} Bg6 {[%emt 0:03:24]} 28. e4 {[%emt 0:00:06]} Qc7 {[%emt 0:01:54]} 29. O-O {[%emt 0:00:32]} h4 {[%emt 0:06:50]} 30. g4 {[%emt 0:00:11]} Qd7 {[%emt 0:01:55]} 31. Bd3 {[%emt 0:02:58]} Qxg4 {[%emt 0:01:47]} 32. f3 {[%emt 0:00:48]} Qe6 {[%emt 0:00:12]} 33. Rb1 {[%emt 0:01:20]} Rd7 {[%emt 0:00:28]} 34. Rb6 {[%emt 0:01:21]} Ra8 {[%emt 0:00:34]} 35. Rfb1 {[%emt 0:02:05]} Qe7 {[%emt 0:06:40]} 36. a4 Nd8 {[%emt 0:05:52]} 37. Nc1 Bf7 {[%emt 0:06:26]} 38. Nb3 {[%emt 0:01:13]} Rc7 {[%emt 0:00:00]} 39. Bc4 {[%emt 0:00:00]} Ne6 {[%emt 0:00:44]} 40. c6 {[%emt 0:00:00]} bxc6 {[%emt 0:04:08]} 41. a5 {[%emt 0:02:05]} Nf4 {[%emt 0:24:58]} 42. a6 {[%emt 0:03:29]} Bxc4 {[%emt 0:06:26]} 43. Qxc4 {[%emt 0:00:17]} Qe6 {[%emt 0:00:52]} 44. Rc1 {[%emt 0:06:39]} Kf7 {[%emt 0:06:34]} 45. Qxe6+ {[%emt 0:07:34]} Nxe6 {[%emt 0:00:09]} 46. Rcxc6 {[%emt 0:00:25]} Rxc6 {[%emt 0:01:13]} 47. Rxc6 {[%emt 0:04:44]} Ke7 {[%emt 0:03:43]} 48. Rb6 {[%emt 0:01:18]} Kd7 {[%emt 0:16:32]} 49. Kf1 {[%emt 0:14:15]} Rc8 {[%emt 0:00:00]} 50. Rb7+ {[%emt 0:00:19]} Kd6 {[%emt 0:00:00]} 51. a7 {[%emt 0:03:52]} Ra8 {[%emt 0:00:00]} 52. Rf7 {[%emt 0:00:58]} Nc5 {[%emt 0:00:00]} 53. Na5 {[%emt 0:04:29]} Nd7 {[%emt 0:00:00]} 54. Nc4+ {[%emt 0:00:04]} Kc5 {[%emt 0:00:00]} 55. Rxd7 {[%emt 0:00:15]} Kxc4 {[%emt 0:00:00]} 56. Ke2 {[%emt 0:00:56]} Kc5 {[%emt 0:00:00]} 57. Rf7 {[%emt 0:00:54]} Kb6 {[%emt 0:00:00]} 58. Rxf6+ {[%emt 0:00:19]} Kxa7 {[%emt 0:00:00]} 59. Rg6 {[%emt 0:01:45]} Kb7 {[%emt 0:00:00]} 60. Rxg5 {[%emt 0:00:53]} Ra5 {[%emt 0:00:00]} 61. Rg6 Kc7 {[%emt 0:00:00]} 62. Kd3 Ra3+ {[%emt 0:01:52]} 63. Kd2 {[%emt 0:01:39]} Kd7 {[%emt 0:00:00]} 64. Kc2 {[%emt 0:00:49]} h3 {[%emt 0:00:00]} 65. gxh3 {[%emt 0:00:24]} Rxf3 {[%emt 0:00:00]} 66. h4 {[%emt 0:00:59]} Re3 {[%emt 0:00:33]} 67. Rg4 {[%emt 0:00:30]} Rh3 {[%emt 0:00:16]} 68. Rg5 {[%emt 0:00:25]} Kd6 {[%emt 0:00:46]} 69. h5 {[%emt 0:00:03]} Kc5 {[%emt 0:00:53]} 70. Rxe5+ {[%emt 0:00:44]} Kc4 {[%emt 0:00:00]} 71. Ra5 {[%emt 0:00:52]} Rh2+ {[%emt 0:00:13]} 72. Kd1 {[%emt 0:00:19]} d3 {[%emt 0:00:27]} 73. e5 {[%emt 0:00:43]} Kc3 {[%emt 0:01:37]} 74. Ra3+ {[%emt 0:00:05]} Kd4 {[%emt 0:00:51]} 75. e6 Ke3 {[%emt 0:00:31]} 76. Kc1 {[%emt 0:00:13]} Rh1+ {[%emt 0:00:08]} 77. Kb2 {[%emt 0:00:02]} Rxh5 {[%emt 0:00:05]} 78. e7 {[%emt 0:01:04]} Re5 {[%emt 0:00:16]} 79. Ra7 {[%emt 0:00:34]} d2 {[%emt 0:01:32]} 80. Rd7 {[%emt 0:00:10]} Ke2 {[%emt 0:00:24]} 81. Kc2 {[%emt 0:00:19]} Rc5+ {[%emt 0:00:31]} 82. Kb2 {[%emt 0:00:15]} Re5 {[%emt 0:00:19]} 83. Kc2 {[%emt 0:00:04]} 1/2-1/2

[Event "Caplin Hastings Masters 2023-24"]
[Site "Hastings"]
[Date "2023.12.31"]
[Round "4.9"]
[White "Jacobson, Brandon"]
[Black "Sarkar, Justin"]
[Result "1-0"]
[ECO "E41"]
[WhiteElo "2538"]
[BlackElo "2272"]
[Annotator "TA"]
[PlyCount "117"]
[EventDate "2023.12.18"]
[EventType "swiss"]
[EventCountry "ENG"]
[SourceTitle "playchess.com"]
[Source "ChessBase"]
[SourceQuality "1"]
[TimeControl "40/6000+30:3000+30"]

{[%evp 13,117,34,31,36,40,21,43,36,49,32,59,59,170,97,97,93,137,131,127,118,139,139,141,123,313,186,184,181,175,175,179,174,238,-1980,21,-245,177,169,382,371,319,238,248,139,133,138,132,132,102,82,102,102,102,102,105,102,102,86,102,102,91,75,93,91,93,81,83,81,79,79,99,106,104,120,138,168,191,165,168,164,210,197,189,75,583,583,576,577,518,403,500,459,583,583,573,558,531,0,547,0,482,456,512,491,4718,3378]} 1. d4 {[%emt 0:01:16]} Nf6 {[%emt 0:00:59]} 2. c4 {[%emt 0:00:18]} e6 {[%emt 0:00:13]} 3. Nc3 {[%emt 0:00:46]} Bb4 {[%emt 0:00:17]} 4. e3 {[%emt 0:00:41]} d6 {[%emt 0:03:57]} 5. Bd3 {[%emt 0:02:46]} c5 {[%emt 0:00:58]} 6. Nge2 {[%emt 0:02:47]} Nc6 {[%emt 0:00:54]} 7. O-O {[%emt 0:06:03]} O-O {[%emt 0:00:40]} 8. a3 {[%emt 0:06:06] E41: Nimzo-Indian: Rubinstein: 4...c5 5 Bd3, including Hübner Variation.} Ba5 {[%emt 0:00:47]} 9. Bd2 {[%emt 0:03:11] [#]} a6 $146 {[%emt 0:19:38]} ({Predecessor:} 9... cxd4 10. exd4 Bb6 11. Be3 Ng4 12. Bf4 e5 13. dxe5 dxe5 14. Bg3 f5 15. h3 f4 16. hxg4 fxg3 17. Nxg3 {0-1 Raja,R (2491)-Fedoseev,V (2686) Chess.com Rapid Wk23 Swiss 2022 (1)}) 10. Qc2 {[%emt 0:07:26] White is slightly better.} Bb6 {[%emt 0:10:38][%cal Rc5d4]} 11. dxc5 {[%emt 0:02:55]} dxc5 {[%emt 0:00:08]} 12. f4 {[%emt 0:09:04]} e5 {[%emt 0:08:58]} (12... g6 $14) 13. Ne4 {[%emt 0:09:25]} (13. Be1 $1 $18) 13... Nxe4 $16 {[%emt 0:03:11]} 14. Bxe4 {[%emt 0:00:06]} f5 {[%emt 0:00:50]} 15. Bd5+ {[%emt 0:01:48]} Kh8 {[%emt 0:00:05]} 16. Bc3 {[%emt 0:06:29]} Nd4 {[%emt 0:16:36]} 17. Qd1 {[%emt 0:05:28][%cal Of4e5]} (17. exd4 cxd4 18. Kh1 dxc3 $16) 17... Nxe2+ {[%emt 0:01:52]} 18. Qxe2 {[%emt 0:00:04]} exf4 $2 {[%emt 0:00:46]} (18... e4 $16) 19. exf4 {[%emt 0:01:35]} (19. Rxf4 Bc7 $16) (19. Qh5 $142 {aiming for Rf3.} Qe8 20. Qg5) 19... Ba5 $18 {[%emt 0:07:04]} 20. Bxa5 {[%emt 0:12:16]} Qxa5 {[%emt 0:00:04]} 21. Qe7 {[%emt 0:00:08][%csl LRb7,LRf8][%cal Re7f8] Inhibits Qc7.} Qd8 {[%emt 0:00:21]} 22. Rfe1 {[%emt 0:00:31]} Qxe7 {[%emt 0:01:43]} (22... Bd7 $142 23. Qxc5 (23. Bxb7 Rb8 $18) 23... Rc8) 23. Re2 $4 {[%emt 0:00:07][%mdl 8192] [#]} (23. Rxe7 $18 Rd8 24. Rae1 (24. Bxb7 Bxb7 25. Rxb7 Rab8 $16)) 23... Qe6 $2 24. Rxe6 $4 {[%emt 0:00:30][%mdl 8192]} (24. Bxe6 $11 Bxe6 25. Rxe6) 24... Rb8 $4 {[%emt 0:00:37][%mdl 8192]} (24... Bxe6 $19 {and all is fine.} 25. Bxe6 Rae8) 25. Re7 {[%emt 0:01:56][%cal Be6e7,Be7c7,Bc7c5][%mdl 32]} b6 $2 {[%emt 0:02:03]} (25... Rd8 {was worth a try.} 26. Rae1 Bd7) 26. Rae1 b5 {[%emt 0:00:00]} 27. Rc7 {[%emt 0:03:24]} bxc4 {[%emt 0:00:00]} 28. Ree7 {[%emt 0:00:46]} (28. Rxc5 Rxb2 29. Rxc4 h6 $16) (28. Bxc4 $18 {And now Ree7 would win.} Rb7 29. Ree7 (29. Rxc5 Rxb2 30. Re7 Bb7 $16) 29... Rxc7 30. Rxc7) 28... Rd8 $16 {[%emt 0:00:00]} 29. Bxc4 {[%emt 0:01:09] White is much more active.} (29. Rxc5 Rxb2 30. Bf3 (30. Bxc4 Bb7 $11) (30. Rxc4 Rb1+ 31. Kf2 Rb2+ 32. Kf1 Rb1+ 33. Ke2 Rb2+ 34. Kf1 Rb1+ 35. Kf2 Rb2+ 36. Kf1 $14) 30... Rb1+ 31. Kf2 Rb2+ 32. Kg3 Rbd2 $14) 29... Rxb2 {[%emt 0:00:08]} 30. h4 {[%emt 0:12:10]} ({Don't play} 30. Rxg7 $6 Rd1+ 31. Bf1 Rbb1 $11) (30. Rxc5 $6 Bb7 $11) 30... Rc2 {[%emt 0:06:32]} 31. Rxc5 {[%emt 0:00:41] Rec7 would be deadly.} h6 {[%emt 0:02:42]} 32. Rec7 {[%emt 0:00:58]} Rd1+ {[%emt 0:04:37]} 33. Kh2 {[%emt 0:03:46]} Bd7 {[%emt 0:00:35]} 34. Bxa6 {[%emt 0:03:40][%mdl 64] Discovered Attack} Rxc5 {[%emt 0:00:11]} 35. Rxc5 {[%emt 0:00:04][%mdl 4096] Endgame KRB-KRB} Ra1 {[%emt 0:04:50]} 36. Rc3 {[%emt 0:04:09]} Kg8 {[%emt 0:01:32]} 37. Kg3 {[%emt 0:01:11]} Kf8 {[%emt 0:00:22]} 38. Kf3 {[%emt 0:00:47]} Ke7 {[%emt 0:01:42]} 39. Ke3 {[%emt 0:00:23]} Re1+ {[%emt 0:03:27]} 40. Kd2 {[%emt 0:00:42]} Rg1 {[%emt 0:01:48]} 41. Bb7 {[%emt 0:50:41]} Rb1 {[%emt 0:51:09]} 42. Bf3 {[%emt 0:01:38]} Rb2+ {[%emt 0:03:27]} 43. Ke3 {[%emt 0:00:00]} Kf6 {[%emt 0:00:00]} 44. Rc7 {[%emt 0:00:00]} Be8 {[%emt 0:00:00] [#]} 45. Ra7 $1 {[%emt 0:00:00]} Rb6 {[%emt 0:00:00]} 46. Kd4 {[%emt 0:00:00]} g5 {[%emt 0:00:00]} (46... Bf7 $142 47. Kc5 Rb2) 47. fxg5+ $18 {[%emt 0:00:00]} hxg5 {[%emt 0:00:00]} 48. h5 {[%emt 0:00:00]} (48. hxg5+ $18 Kxg5 49. Ra8) 48... Bf7 $2 {[%emt 0:00:00][%mdl 8192]} (48... g4 $16 {prevents the worst.} 49. h6 Rd6+ 50. Kc5 (50. Bd5 Bc6 $16) 50... Rd7 51. Rxd7 Bxd7) 49. h6 {[%emt 0:00:06]} Rd6+ {[%emt 0:00:00]} 50. Kc5 {[%emt 0:00:41]} Rd8 {[%emt 0:00:00]} 51. Ra6+ {[%emt 0:01:15]} Be6 {[%emt 0:04:14]} 52. h7 {[%emt 0:02:03]} Rc8+ {[%emt 0:00:24]} 53. Kd4 {[%emt 0:01:24]} Rd8+ {[%emt 0:00:35]} 54. Kc3 {[%emt 0:00:33][%cal Of3d5]} Rc8+ {[%emt 0:01:33]} 55. Kd4 {[%emt 0:00:09]} Rd8+ {[%emt 0:00:06]} 56. Kc3 {[%emt 0:00:09][%cal Of3d5] Strongly threatening Bd5!} Rc8+ $1 {[%emt 0:00:06]} 57. Kd2 {[%emt 0:01:35] White is clearly winning.} Rd8+ {[%emt 0:00:12]} 58. Ke3 {[%emt 0:01:05]} g4 {[%emt 0:03:02] [#]} (58... Rh8 $142 59. Bd5 Ke5) 59. Bd5 $1 {[%emt 0:00:11][%mdl 576] Pin. Quite a comeback for White. An entertaining game by Jacobson.   Weighted Error Value: White=0.48/Black=0.44} 1-0

[Event "Caplin Hastings Masters 2023-24"]
[Site "Hastings"]
[Date "2023.12.31"]
[Round "4.10"]
[White "Boswell, Jacob Connor"]
[Black "Edouard, Romain"]
[Result "1/2-1/2"]
[ECO "E18"]
[WhiteElo "2235"]
[BlackElo "2527"]
[Annotator "TA"]
[PlyCount "74"]
[EventDate "2023.12.18"]
[EventType "swiss"]
[EventCountry "ENG"]
[SourceTitle "playchess.com"]
[Source "ChessBase"]
[SourceQuality "1"]
[TimeControl "40/6000+30:3000+30"]

{[%evp 13,74,16,17,0,0,6,24,-24,-6,-13,-12,-18,0,-18,0,-32,-6,-4,0,0,68,46,114,118,107,29,57,0,35,34,50,53,54,-12,76,0,3,0,0,0,0,0,0,0,28,14,123,125,125,124,131,0,0,0,0,0,0,0,0,0,0,0,0]} 1. d4 {[%emt 0:00:32]} Nf6 {[%emt 0:00:22]} 2. c4 {[%emt 0:00:08]} e6 {[%emt 0:00:05]} 3. Nf3 {[%emt 0:00:08]} b6 {[%emt 0:00:10]} 4. g3 {[%emt 0:00:37]} Bb7 {[%emt 0:00:04]} 5. Bg2 {[%emt 0:00:14]} Be7 {[%emt 0:00:04]} 6. O-O {[%emt 0:00:28]} O-O {[%emt 0:00:03]} 7. Nc3 {[%emt 0:02:05]} Ne4 {[%emt 0:00:15]} 8. Re1 {[%emt 0:02:37][%cal Of3g5] E18: Queen's Indian: Old Main Line (4 g3 Bb7 5 Bg2 Be7 6 0-0 0-0 7 Nc3).} Nxc3 {[%emt 0:00:39]} 9. bxc3 {[%emt 0:00:03]} f5 {[%emt 0:05:31]} 10. Bf1 {[%emt 0:02:44]} (10. Ne5 $142 Bxg2 11. Kxg2) 10... Bf6 {[%emt 0:03:20] [#]} 11. Bb2 $146 {[%emt 0:02:56]} ({Predecessor:} 11. Nd2 e5 12. Bb2 Nc6 13. Bg2 d6 14. Bd5+ Kh8 15. e4 Rb8 16. Nf3 Qd7 17. Qa4 {1-0 Van de Mortel,J (2401)-Jens,J (2360) BEL-chT 0203 2002 (5.3)}) 11... d6 {[%emt 0:02:32]} 12. Nd2 {[%emt 0:11:05]} e5 {[%emt 0:00:24]} 13. e4 {[%emt 0:01:11]} f4 {[%emt 0:00:46]} 14. Bh3 {[%emt 0:12:31]} Bc8 {[%emt 0:01:14]} 15. Bxc8 {[%emt 0:04:19]} Qxc8 {[%emt 0:00:02]} 16. gxf4 {[%emt 0:05:10]} Qh3 {[%emt 0:01:06]} (16... exf4 $11 17. Qf3 Nd7) 17. f5 $14 {[%emt 0:04:02]} g6 {[%emt 0:07:15] [#]} (17... Nd7 $14) 18. Re3 $1 $16 {[%emt 0:02:48]} Qh6 {[%emt 0:00:09]} 19. Qg4 {[%emt 0:04:45]} (19. Rg3 $16) 19... Nc6 {[%emt 0:10:37]} 20. Nb3 {[%emt 0:03:29]} (20. Kh1 $14) 20... Ne7 {[%emt 0:00:30]} (20... Kh8 $5 {[%cal Rg6f5]}) 21. Rh3 $1 {[%emt 0:11:30]} Qg7 {[%emt 0:00:08]} 22. fxg6 {[%emt 0:00:36]} Nxg6 {[%emt 0:00:04]} 23. Kh1 {[%emt 0:02:34]} (23. Bc1 $1 $14) 23... Be7 {[%emt 0:13:14] [#]} (23... Nf4 $11 24. Qxg7+ Bxg7) 24. Rf1 {[%emt 0:04:06]} ({White should try} 24. Bc1 $1 $16 {[%cal Rc1h6] And now Bh6 would win.} Nf4 25. Rg3 Qxg4 26. Rxg4+ Ng6 27. Be3) 24... Rf4 $132 {[%emt 0:03:04][%mdl 2048] Black is fighting back} 25. Qe6+ {[%emt 0:01:42]} Kh8 $1 {[%emt 0:00:03]} 26. Bc1 {[%emt 0:02:41]} Rg8 {[%emt 0:01:33] White must now prevent ...Nf8.} 27. Rg3 {[%emt 0:07:39]} Rxe4 {[%emt 0:01:06]} 28. Be3 {[%emt 0:03:33]} Bh4 {[%emt 0:11:59]} 29. Rgg1 {[%emt 0:02:43] Strongly threatening Nd2.} Qf8 {[%emt 0:25:14]} (29... Bf6 $11 {remains equal.}) 30. Nd2 $16 {[%emt 0:01:49] White is more active.} Rf4 {[%emt 0:00:02]} 31. Bxf4 {[%emt 0:04:46]} Qxf4 {[%emt 0:00:10]} 32. Rg4 {[%emt 0:06:24]} (32. Rd1 $16) 32... Qxd2 $11 {[%emt 0:00:11] The position is equal.} 33. Rxh4 $1 {[%emt 0:00:13][%mdl 64] Remove Defender, Decoy} Nxh4 {[%emt 0:00:21]} 34. Qf6+ {[%emt 0:00:08]} Rg7 {[%emt 0:00:02]} 35. Qf8+ {[%emt 0:00:29]} Rg8 {[%emt 0:00:03]} 36. Qf6+ {[%emt 0:00:09]} Rg7 {[%emt 0:00:01]} 37. Qf8+ {[%emt 0:00:10]} Rg8 {[%emt 0:00:03] Weighted Error Value: White=0.19 (very precise) /Black=0.23 (precise)} 1/2-1/2

[Event "Caplin Hastings Masters 2023-24"]
[Site "Hastings"]
[Date "2023.12.31"]
[Round "4.11"]
[White "Villiers, Thomas"]
[Black "Mikhalevski, Victor"]
[Result "1/2-1/2"]
[ECO "C56"]
[WhiteElo "2230"]
[BlackElo "2524"]
[Annotator "TA"]
[PlyCount "78"]
[EventDate "2023.12.18"]
[EventType "swiss"]
[EventCountry "ENG"]
[SourceTitle "playchess.com"]
[Source "ChessBase"]
[SourceQuality "1"]
[TimeControl "40/6000+30:3000+30"]

{[%evp 21,78,-9,-9,-9,-3,-8,-3,-23,0,-4,0,0,0,0,9,14,15,15,12,15,28,28,29,20,17,12,25,8,8,0,26,0,14,6,6,0,0,0,0,0,0,0,0,0,0,0,15,0,31,31,31,31,31,31,31,31,31,31,38]} 1. e4 {[%emt 0:00:01]} e5 {[%emt 0:02:44]} 2. Nf3 {[%emt 0:00:09]} Nc6 {[%emt 0:00:06]} 3. Bc4 {[%emt 0:00:11]} Bc5 {[%emt 0:00:09]} 4. c3 {[%emt 0:00:09]} Nf6 {[%emt 0:00:05]} 5. d4 {[%emt 0:00:06]} exd4 {[%emt 0:00:08]} 6. O-O {[%emt 0:00:16]} Nxe4 {[%emt 0:00:29]} 7. cxd4 {[%emt 0:00:10]} d5 {[%emt 0:00:10]} 8. dxc5 {[%emt 0:00:10]} dxc4 {[%emt 0:00:04]} 9. Qe2 {[%emt 0:00:09]} Qd3 {[%emt 0:01:22]} 10. Re1 {[%emt 0:00:08]} f5 {[%emt 0:02:44]} 11. Nc3 {[%emt 0:04:23]} O-O {[%emt 0:02:00][%csl LRc3,LRc5]} 12. Nxe4 {[%emt 0:00:07] C56: Two Knights: 4 d4 exd4 5 0-0 Nxe4.} fxe4 {[%emt 0:00:28]} 13. Qxe4 {[%emt 0:00:08]} Bf5 {[%emt 0:07:53]} 14. Qh4 {[%emt 0:00:09] The position is equal.} (14. Qxd3 {simplifies} Bxd3 15. Be3 Rad8 16. Rac1) 14... Qd5 {[%emt 0:03:43]} 15. Bf4 {[%emt 0:06:38][%cal Bc1f4,Bf4c7,Bc7e5,Be5c3][%mdl 32]} Bd3 {[%emt 0:07:42] [#]} 16. Qg3 $146 {[%emt 0:01:48]} ({Predecessor:} 16. Bxc7 Rxf3 17. gxf3 Nd4 18. Re3 Qxc5 19. Qg3 Nc2 20. Bd6 Qd5 21. Re7 Bg6 22. Be5 Nxa1 23. Rxg7+ {0-1 Criado Lopez,A (2014)-Ali,E (2223) ESP-ch Student 2007 (3)}) 16... Rf6 {[%emt 0:45:38] [#] Strongly threatening ...Raf8.} 17. Bxc7 {[%emt 0:09:52]} Qxc5 {[%emt 0:00:32]} 18. Ne5 {[%emt 0:01:29]} Nxe5 {[%emt 0:07:39]} 19. Rxe5 {[%emt 0:00:44]} Qc6 {[%emt 0:01:50] And now ...Rg6 would win.} ({Resist} 19... Qxc7 20. Re8+ Rxe8 21. Qxc7 $16) 20. Rg5 {[%emt 0:01:00]} ({But not} 20. Re7 $2 Rg6 21. Be5 Rxg3 $19) 20... Rf7 {[%emt 0:08:37]} 21. Be5 {[%emt 0:00:16][%cal Rg5g7]} Qd7 $1 {[%emt 0:00:19]} 22. h4 {[%emt 0:00:49]} Re8 {[%emt 0:00:31] [#] White must now prevent ...h6.} 23. Bc3 {[%emt 0:00:46]} Bf5 {[%emt 0:08:09]} 24. Qf4 {[%emt 0:03:31]} (24. Kh2 $5) 24... Bd3 {[%emt 0:02:51]} 25. Qg3 {[%emt 0:00:47]} (25. Qg4 {simplifies} Qxg4 26. Rxg4 Re2 27. Re1) 25... Rfe7 {[%emt 0:04:08]} (25... Bf5 $5 {[%cal Rh7h6]}) 26. Bf6 {[%emt 0:02:04]} h6 {[%emt 0:01:32]} (26... Rf7 $5 {[%cal Rf7f6]} 27. Bc3 $11) 27. Bxe7 {[%emt 0:00:35]} hxg5 {[%emt 0:00:04]} 28. Bxg5 {[%emt 0:00:19]} Qd4 {[%emt 0:00:06]} 29. Bd2 {[%emt 0:04:23]} Qxb2 {[%emt 0:00:16]} 30. Re1 {[%emt 0:00:05]} Rxe1+ {[%emt 0:01:14]} 31. Bxe1 $11 {[%emt 0:00:06][%mdl 4096] Endgame KQB-KQB} Qa1 {[%emt 0:01:11]} (31... Qxa2 $2 32. Bc3 Qb1+ 33. Kh2 $18) 32. Qb8+ {[%emt 0:00:17]} Kh7 {[%emt 0:00:31]} 33. Qe8 {[%emt 0:00:06]} Qd1 {[%emt 0:01:29] Hoping for ...c3.} 34. f3 {[%emt 0:00:44]} Bg6 {[%emt 0:00:27]} 35. Qe5 {[%emt 0:00:22] White is slightly better.} Bf7 {[%emt 0:00:36]} 36. Kh2 {[%emt 0:00:20] White threatens Bc3 and mate.} Qd5 {[%emt 0:00:02]} 37. Qxd5 {[%emt 0:00:51]} Bxd5 {[%emt 0:00:01]} 38. Bc3 {[%emt 0:00:29]} Be6 {[%emt 0:01:19]} 39. Kg3 {[%emt 0:00:40]} Bf5 {[%emt 0:00:11] Weighted Error Value: White=0.05 (flawless) /Black=0.07 (flawless)} 1/2-1/2

[Event "Caplin Hastings Masters 2023-24"]
[Site "Hastings"]
[Date "2023.12.31"]
[Round "4.12"]
[White "Sengupta, Deep"]
[Black "Juknis, Paulius"]
[Result "1/2-1/2"]
[ECO "C08"]
[WhiteElo "2501"]
[BlackElo "2148"]
[Annotator "TA"]
[PlyCount "37"]
[EventDate "2023.12.18"]
[EventType "swiss"]
[EventCountry "ENG"]
[SourceTitle "playchess.com"]
[Source "ChessBase"]
[SourceQuality "1"]
[TimeControl "40/6000+30:3000+30"]

{[%evp 17,37,0,0,0,0,-14,0,-35,-36,-37,-34,-50,-19,-65,-43,-45,-39,-31,-31,-35,-45,-50]} 1. e4 {[%emt 0:00:04]} c5 {[%emt 0:00:20]} 2. c3 {[%emt 0:00:05]} e6 {[%emt 0:00:43]} 3. d4 {[%emt 0:00:33]} d5 {[%emt 0:00:11]} 4. exd5 {[%emt 0:01:21]} exd5 {[%emt 0:00:33]} 5. Nf3 {[%emt 0:00:07]} Nc6 {[%emt 0:01:01]} 6. Bb5 {[%emt 0:00:06]} Bd6 {[%emt 0:00:42][%cal Bf8d6,Bd6c5,Bc5b6][%mdl 32]} 7. dxc5 {[%emt 0:00:44]} Bxc5 {[%emt 0:00:07]} 8. O-O {[%emt 0:00:05]} Nf6 {[%emt 0:01:12]} 9. Nbd2 {[%emt 0:01:25][%cal Bb1d2,Bd2b3,Bb3d4][%mdl 32]} O-O {[%emt 0:00:39]} 10. Nb3 {[%emt 0:00:06] C08: French Tarrasch: 3...c5 4 exd5 exd5 sidelines.} Bb6 {[%emt 0:00:33]} 11. Nbd4 {[%emt 0:24:58]} Qd6 {[%emt 0:08:16]} 12. g3 {[%emt 0:08:07] [#] The position is equal.} Ne4 $146 {[%emt 0:32:30]} ({Predecessor:} 12... Bg4 13. Qd3 Ne4 14. Bf4 Qf6 15. Bxc6 bxc6 16. Be5 Qg6 17. Nh4 Qh5 18. Nxc6 Be2 19. Qxd5 Bg4 20. Qd3 {½-½ Ravi,T (2303)-Rajarishi,K (2046) Trichy Pro Chess op 1st 2017 (5)}) 13. Be3 {[%emt 0:08:02]} Bg4 {[%emt 0:04:12]} 14. Be2 {[%emt 0:02:33]} Qf6 {[%emt 0:05:23]} 15. Kg2 {[%emt 0:10:20]} (15. Nc2 $11) 15... Rad8 {[%emt 0:06:14] Black is slightly better.} 16. h3 {[%emt 0:11:40]} Bh5 {[%emt 0:13:42]} 17. Nxc6 {[%emt 0:07:34]} bxc6 {[%emt 0:00:41]} 18. Bd4 {[%emt 0:03:17]} Qd6 {[%emt 0:03:04]} 19. Bxb6 {[%emt 0:08:49] Weighted Error Value: White=0.10 (very precise) /Black=0.09 (flawless)} 1/2-1/2